fUST/lending_fUST_20240114
["ID","MTS","AMOUNT","RATE_DAILY","PERIOD"]
[311552024,1705222711450,-142.70254111,0.00020999,2]
[311552025,1705222711513,-12.28196044,0.00020999,2]
[311552026,1705222713050,589.53410139,0.00020999,2]
[311552027,1705222713083,601.81606183,0.00020999,2]
[311552028,1705222713122,601.81606183,0.00020999,2]
[311552029,1705222713169,298.84828354,0.00020998,2]
[311552030,1705222713559,-12000.0,0.00020999,2]
[311552031,1705222713770,-1405.81596572,0.00020999,2]
[311552032,1705222713805,-10594.18403428,0.00020999,2]
[311552033,1705222713892,-10251.05979255,0.00020999,2]
[311552034,1705222714497,160.77503701,0.00020997,2]
[311552035,1705222719599,-460.54901862,0.00020999,2]
[311552036,1705222719902,-9.39895956,0.00020999,2]
[311552037,1705222729673,-511.19632307,0.00021,2]
[311552038,1705222729906,-511.19632307,0.00021,2]
[311552039,1705222729997,-511.19632307,0.00021,2]
[311552040,1705222730194,-1689.71908403,0.00021,2]
[311552041,1705222730223,-521.62890109,0.000211,2]
[311552042,1705222734583,-1252.0332788,0.00021,2]
[311552043,1705222734721,-25.55169957,0.00021,2]
[311552044,1705222752788,-12000.0,0.00021,2]
[311552045,1705222752978,-12000.0,0.00021,2]
[311552046,1705222753088,-12000.0,0.00021,2]
[311552047,1705222753211,-12000.0,0.00021,2]
[311552048,1705222753314,-12000.0,0.00021,2]
[311552049,1705222753451,-12000.0,0.00021,2]
[311552050,1705222753566,-12000.0,0.00021,2]
[311552051,1705222753669,-12000.0,0.00021,2]
[311552052,1705222753784,-12000.0,0.00021,2]
[311552053,1705222753889,-12000.0,0.00021,2]
[311552054,1705222754091,-12000.0,0.00021,2]
[311552055,1705222754163,-12000.0,0.00021,2]
[311552056,1705222754241,-12000.0,0.00021,2]
[311552057,1705222754321,-12000.0,0.00021,2]
[311552058,1705222754429,-12000.0,0.00021,2]
[311552059,1705222754569,-12000.0,0.00021,2]
[311552060,1705222754672,-12000.0,0.00021,2]
[311552061,1705222754778,-12000.0,0.00021,2]
[311552062,1705222754994,-12000.0,0.00021,2]
[311552063,1705222755026,-12000.0,0.00021,2]
[311552064,1705222755105,-12000.0,0.00021,2]
[311552065,1705222755291,-12000.0,0.00021,2]
[311552066,1705222755409,-12000.0,0.00021,2]
[311552067,1705222755578,-7734.29506715,0.00021,2]
[311552068,1705222755605,-547.14575296,0.00021,2]
[311552069,1705222755648,-200.0,0.00021,2]
[311552070,1705222755678,-3518.55917989,0.00021,2]
[311552071,1705222755714,-6767.8070726,0.00021,2]
[311552072,1705222755744,-1274.40351652,0.00021,2]
[311552073,1705222755892,1261.48286076,0.00021,2]
[311552074,1705222756672,305.75934506,0.00021,2]
[311552075,1705222758479,299.64415816,0.00021,2]
[311552076,1705222760616,-42.9812481,0.00021,2]
[311552077,1705222760641,-154.98450155,0.00021,2]
[311552078,1705222760668,-603.46398435,0.00021,2]
[311552079,1705222760951,-16.35570886,0.00021,2]
[311552080,1705222770813,-154.98450155,0.00021,2]
[311552081,1705222770844,-1791.78326614,0.00021,2]
[311552082,1705222770871,-162.3868869,0.00021,2]
[311552083,1705222770944,-43.04397254,0.00021,2]
[311552084,1705222772161,1274.40351652,0.00021,2]
[311552085,1705222773595,1248.91544619,0.00021,2]
[311552086,1705222774032,-8856.70179017,0.00021,2]
[311552087,1705222774208,-180.74901613,0.00021,2]
[311552088,1705222774234,-1261.48286076,0.00021,2]
[311552089,1705222775578,156.91760523,0.00021,2]
[311552090,1705222776585,260.6264939,0.00021,2]
[311552091,1705222778539,-607.42329935,0.00021,2]
[311552092,1705222778694,-12.39639386,0.00021,2]
[311552093,1705222782820,-335.77289813,0.00021,2]
[311552094,1705222783069,-6.85250813,0.00021,2]
[311552095,1705222789938,-154.98450155,0.00021,2]
[311552096,1705222789967,-10077.53923741,0.00021,2]
[311552097,1705222790224,-208.82701508,0.00021,2]
[311552098,1705222790251,-825.47676443,0.00021,2]
[311552099,1705222796351,-1236.25320355,0.00021,2]
[311552100,1705222796456,-25.22965721,0.00021,2]
[311552101,1705222796486,-619.81969321,0.00021,2]
[311552102,1705222800931,-335.77289813,0.00021,2]
[311552103,1705222801221,-6.85250813,0.00021,2]
[311552104,1705222804060,-10080.63892744,0.00021,2]
[311552106,1705222804274,-205.72732505,0.00021,2]
[311552107,1705222811968,-170.61170422,0.00020999,2]
[311552108,1705222811994,-163.0995316,0.00021,2]
[311552109,1705222812049,-6.81043338,0.00021,2]
[311552110,1705222813909,326.90080244,0.00021,2]
[311552111,1705222813937,333.71123582,0.00021,2]
[311552112,1705222813964,333.71123582,0.00021,2]
[311552113,1705222813990,267.15958668,0.00021,2]
[311552114,1705222814197,66.55164914,0.00021,2]
[311552115,1705222814603,-553.26804407,0.00021,2]
[311552116,1705222820841,-339.46679713,0.00021,2]
[311552117,1705222821053,-6.92789382,0.00021,2]
[311552118,1705222824179,-572.72805265,0.00021,2]
[311552119,1705222824279,-11.6883276,0.00021,2]
[311552120,1705222834365,-1302.14052903,0.00021,2]
[311552121,1705222834507,-26.57429651,0.00021,2]
[311552122,1705222836169,619.81969321,0.00021,2]
[311552123,1705222842782,-154.98450155,0.00020999,2]
[311552124,1705222842808,-2036.38951696,0.00021,2]
[311552125,1705222842953,-44.72191874,0.00021,2]
[311552126,1705222848804,-12000.0,0.00021,2]
[311552127,1705222848931,-12000.0,0.00021,2]
[311552128,1705222849087,-12000.0,0.00021,2]
[311552129,1705222849216,-12000.0,0.00021,2]
[311552130,1705222849379,-12000.0,0.00021,2]
[311552131,1705222849506,-12000.0,0.00021,2]
[311552132,1705222849650,-12000.0,0.00021,2]
[311552133,1705222849789,-12000.0,0.00021,2]
[311552134,1705222850332,-12000.0,0.00021,2]
[311552135,1705222850374,-12000.0,0.00021,2]
[311552136,1705222850444,-12000.0,0.00021,2]
[311552137,1705222850499,-12000.0,0.00021,2]
[311552139,1705222900252,-12000.0,0.00020368,2]
[311552140,1705222900411,-1700.42570199,0.00020368,2]
[311552141,1705222900441,-154.98450155,0.00020368,4]
[311552142,1705222900469,-10144.58979646,0.00020369,2]
[311552143,1705222900533,-8732.44762351,0.00020369,2]
[311552144,1705222900560,-3267.55237649,0.0002037,2]
[311552145,1705222900658,-5476.42970141,0.0002037,2]
[311552146,1705222904944,-12000.0,0.00020367,2]
[311552147,1705222905199,-3198.98219077,0.00020367,2]
[311552148,1705222911600,154.98450155,0.00018897,3]
[311552150,1705222924249,-294.0,0.00020367,2]
[311552151,1705222924484,-6.0,0.00020367,2]
[311552152,1705222924858,288.0,0.00020367,2]
[311552153,1705222924885,294.0,0.00020367,2]
[311552154,1705222925020,294.0,0.00020367,2]
[311552155,1705222925241,-12000.0,0.00020367,2]
[311552156,1705222925371,-12000.0,0.00020367,2]
[311552157,1705222925475,-12000.0,0.00020367,2]
[311552158,1705222925606,-12000.0,0.00020367,2]
[311552159,1705222925738,-12000.0,0.00020367,2]
[311552160,1705222925846,-12000.0,0.00020367,2]
[311552161,1705222925989,-12000.0,0.00020367,2]
[311552162,1705222926426,-12000.0,0.00020367,2]
[311552163,1705222926465,-12000.0,0.00020367,2]
[311552164,1705222926528,-12000.0,0.00020367,2]
[311552165,1705222926610,-12000.0,0.00020367,2]
[311552166,1705222926651,-12000.0,0.00020367,2]
[311552167,1705222926709,-12000.0,0.00020367,2]
[311552168,1705222926820,-12000.0,0.00020367,2]
[311552169,1705222926939,-12000.0,0.00020367,2]
[311552170,1705222927110,-12000.0,0.00020367,2]
[311552171,1705222927287,-12000.0,0.00020367,2]
[311552172,1705222927362,-12000.0,0.00020367,2]
[311552173,1705222927413,-12000.0,0.00020367,2]
[311552174,1705222927578,-12000.0,0.00020367,2]
[311552175,1705222927684,-12000.0,0.00020367,2]
[311552176,1705222927793,-12000.0,0.00020367,2]
[311552177,1705222927907,-12000.0,0.00020367,2]
[311552178,1705222928025,-6858.29506715,0.00020367,2]
[311552179,1705222928052,-200.0,0.00020367,2]
[311552180,1705222928690,2081.1114357,0.00020367,2]
[311552181,1705222928901,359.84,0.00020357,3]
[311552182,1705222929604,154.98450155,0.00018897,3]
[311552184,1705222942012,-294.0,0.00020367,2]
[311552185,1705222942132,-6.0,0.00020367,2]
[311552186,1705222942693,288.0,0.00020367,2]
[311552187,1705222942721,294.0,0.00020367,2]
[311552188,1705222943158,-1028.97497471,0.00020367,2]
[311552189,1705222943310,-20.99948928,0.00020367,2]
[311552190,1705222943340,-1007.97548543,0.00020367,2]
[311552191,1705222943442,-12000.0,0.00020367,2]
[311552192,1705222943586,-12000.0,0.00020367,2]
[311552193,1705222943705,-12000.0,0.00020367,2]
[311552194,1705222943853,-12000.0,0.00020367,2]
[311552195,1705222943986,-12000.0,0.00020367,2]
[311552196,1705222944111,-12000.0,0.00020367,2]
[311552197,1705222944314,-12000.0,0.00020367,2]
[311552198,1705222944346,-12000.0,0.00020367,2]
[311552199,1705222944424,-2298.12745696,0.00020367,2]
[311552201,1705222947376,200.0,0.00020367,2]
[311552202,1705222947599,154.98450155,0.00018894,3]
[311552204,1705222965600,154.98450155,0.00018894,3]
[311552205,1705222983620,154.98450155,0.00018894,3]
[311552206,1705222999616,154.98450155,0.00018896,3]
[311552207,1705223015951,154.98450155,0.00018896,3]
[311552208,1705223016399,1055.53605732,0.00020996,7]
[311552209,1705223018119,155.38358938,0.00018894,2]
[311552211,1705223020794,200.0,0.0002308,7]
[311552212,1705223021220,-3410.84625274,0.00020575,2]
[311552213,1705223021437,-69.6091072,0.00020575,2]
[311552214,1705223023472,5951.58511538,0.00018896,2]
[311552215,1705223024649,759.01187369,0.00018896,2]
[311552216,1705223031931,-12000.0,0.00020785,2]
[311552217,1705223032123,-11886.66635527,0.00020785,2]
[311552218,1705223033184,113.33364473,0.00018894,2]
[311552219,1705223033211,50.94562676,0.00018894,2]
[311552220,1705223035026,-4900.0,0.00020365,5]
[311552221,1705223035178,-100.0,0.00020365,5]
[311552222,1705223037619,154.98450155,0.00018894,3]
[311552223,1705223041142,-3275.88509904,0.00020573,2]
[311552224,1705223041333,-66.85479794,0.00020573,2]
[311552225,1705223048945,-3309.15736509,0.00020363,5]
[311552226,1705223049072,-67.53382378,0.00020363,5]
[311552227,1705223057633,154.98450155,0.00018894,3]
[311552228,1705223079617,154.98450155,0.00018802,3]
[311552229,1705223091973,-298.26083422,0.00020793,2]
[311552230,1705223092002,-162.35225208,0.00020794,2]
[311552231,1705223092101,-9.40026707,0.00020794,2]
[311552232,1705223093965,242.74354718,0.00020793,2]
[311552233,1705223095282,-154.98450155,0.00020793,2]
[311552234,1705223095308,-205.73922866,0.00020793,2]
[311552235,1705223095493,-7.36170878,0.00020793,2]
[311552236,1705223098408,154.98450155,0.00018802,3]
[311552237,1705223106089,472.200648,0.00019887,2]
[311552238,1705223113807,154.98450155,0.00018789,3]
[311552239,1705223133485,12913.46718271,0.00019871,2]
[311552240,1705223133629,154.98450155,0.00018789,3]
[311552241,1705223134262,-11746.80216094,0.00019871,2]
[311552242,1705223134422,-239.73065635,0.00019871,2]
[311552244,1705223148505,-902.188306,0.00019598,2]
[311552245,1705223148531,-143.62361654,0.00019599,2]
[311552246,1705223148565,-21.34310046,0.00019599,2]
[311552247,1705223148729,-250.0,0.0001987,2]
[311552248,1705223149834,594.28685136,0.00019598,2]
[311552249,1705223153635,154.98450155,0.00018788,3]
[311552251,1705223170321,-927.98868383,0.00020027,2]
[311552252,1705223170367,-18.93854457,0.00020027,2]
[311552253,1705223175629,154.98450155,0.00018776,3]
[311552254,1705223175955,-1995.37288555,0.00020026,2]
[311552255,1705223176108,-40.72189562,0.00020026,2]
[311552256,1705223180154,-394.47290503,0.00020766,2]
[311552257,1705223180266,-8.05046745,0.00020766,2]
[311552258,1705223191631,154.98450155,0.00018776,3]
[311552259,1705223192373,-2884.68014523,0.00019859,2]
[311552260,1705223192663,-58.87102337,0.00019859,2]
[311552261,1705223207672,154.98450155,0.00018775,3]
[311552262,1705223223643,154.98450155,0.00018765,3]
[311552263,1705223239646,154.98450155,0.00018765,3]
[311552264,1705223259656,154.98450155,0.00018755,3]
[311552265,1705223275649,154.98450155,0.00018755,3]
[311552273,1705223295645,154.98450155,0.00018744,3]
[311552274,1705223315661,154.98450155,0.00018744,3]
[311552275,1705223320874,200.0,0.00022899,7]
[311552281,1705223335664,154.98450155,0.00018735,3]
[311552282,1705223353655,154.98450155,0.00018734,3]
[311552283,1705223371652,154.98450155,0.00018734,3]
[311552286,1705223391664,154.98450155,0.00018725,3]
[311552288,1705223411657,154.98450155,0.00018722,3]
[311552290,1705223418396,-4656.9894,0.00020797,3]
[311552291,1705223418828,-95.0406,0.00020797,3]
[311552292,1705223429468,-3880.8196,0.00020797,3]
[311552293,1705223429650,-79.2004,0.00020797,3]
[311552319,1705223435760,-452.00948206,0.000208,2]
[311552320,1705223435769,-176.957961,0.00020801,2]
[311552321,1705223435814,-88.10178109,0.00020801,2]
[311552322,1705223435823,-4791.46238905,0.00020801,2]
[311552323,1705223435832,-13700.42570199,0.00020801,2]
[311552324,1705223435841,-154.98450155,0.00020802,2]
[311552325,1705223435850,-2704.5008554,0.00020802,5]
[311552326,1705223435859,-19838.74080195,0.00020802,2]
[311552327,1705223435868,-15891.22665678,0.00020803,2]
[311552328,1705223435877,-643.39406713,0.00020803,2]
[311552329,1705223435887,-298.26083422,0.00020803,2]
[311552330,1705223435896,-7948.24101532,0.00020803,2]
[311552331,1705223435905,-260.73622957,0.00020804,2]
[311552332,1705223435914,-135.52373429,0.00020804,2]
[311552333,1705223436157,154.98450155,0.00018721,3]
[311552420,1705223440039,587.43445735,0.0001872,2]
[311552435,1705223441642,-999.23410879,0.00020794,3]
[311552438,1705223441966,-2300.78589121,0.00020794,3]
[311552439,1705223441975,-260.73622957,0.000208,2]
[311552440,1705223441984,-11.36181527,0.000208,2]
[311552441,1705223441997,-1019.93477198,0.000208,2]
[311552442,1705223442006,-1176.02001931,0.00020802,2]
[311552460,1705223443495,-160.8526865,0.00020799,2]
[311552461,1705223443505,-2510.69765257,0.00020802,2]
[311552463,1705223445486,-12000.0,0.00020793,2]
[311552464,1705223445637,-8873.9127642,0.00020793,2]
[311552476,1705223459669,154.98450155,0.0001872,3]
[311552478,1705223477675,154.98450155,0.00018719,3]
[311552479,1705223478947,565.92530398,0.00018725,2]
[311552480,1705223495671,154.98450155,0.00018718,3]
[311552484,1705223513675,154.98450155,0.00018708,3]
[311552487,1705223533696,154.98450155,0.00018708,3]
[311552488,1705223551670,154.98450155,0.00018708,3]
[311552489,1705223569687,154.98450155,0.00018698,3]
[311552490,1705223583668,154.98450155,0.00018697,3]
[311552491,1705223596866,169.8221,0.00019475,2]
[311552492,1705223601680,154.98450155,0.00018519,3]
[311552493,1705223617678,154.98450155,0.00018519,3]
[311552494,1705223621532,200.0,0.00021723,7]
[311552495,1705223622496,4388.83251914,0.000189,2]
[311552496,1705223631681,154.98450155,0.00018519,3]
[311552497,1705223651682,154.98450155,0.00017772,3]
[311552498,1705223669686,154.98450155,0.00017772,3]
[311552499,1705223689700,154.98450155,0.00017771,3]
[311552500,1705223692893,236.100324,0.00019445,2]
[311552501,1705223709686,154.98450155,0.00017771,3]
[311552503,1705223731752,154.98450155,0.00017771,3]
[311552505,1705223747696,154.98450155,0.00017762,3]
[311552506,1705223765694,154.98450155,0.00017762,3]
[311552507,1705223785698,154.98450155,0.00017762,3]
[311552508,1705223805703,154.98450155,0.00017772,3]
[311552510,1705223823700,154.98450155,0.00017751,3]
[311552512,1705223845703,154.98450155,0.0001776,3]
[311552514,1705223863699,154.98450155,0.0001775,3]
[311552515,1705223881720,154.98450155,0.0001775,3]
[311552516,1705223899706,154.98450155,0.0001775,3]
[311552517,1705223907594,768.79202074,0.00017751,5]
[311552518,1705223915705,154.98450155,0.0001775,3]
[311552519,1705223921306,200.0,0.00021681,7]
[311552520,1705223930071,1163.04068578,0.0001775,2]
[311552521,1705223933919,154.98450155,0.00017739,3]
[311552522,1705223936316,154.98450155,0.0001775,2]
[311552523,1705223936996,22296.74164813,0.0001775,2]
[311552524,1705223937020,31279.19269478,0.0001775,2]
[311552525,1705223955721,154.98450155,0.00017739,3]
[311552526,1705223977725,154.98450155,0.00017645,3]
[311552527,1705223982703,-322.01869796,0.00019508,2]
[311552528,1705223982728,-7554.55,0.00019597,3]
[311552529,1705223982752,-1291.76267786,0.00019605,2]
[311552530,1705223982776,-525.94938835,0.00019605,2]
[311552531,1705223982800,-1379.95266542,0.00019605,2]
[311552532,1705223982822,-442.79286897,0.00019605,2]
[311552533,1705223982846,-7526.54157179,0.00019606,2]
[311552534,1705223982868,-587.43445735,0.00019606,2]
[311552535,1705223982890,-1031.29658725,0.00019607,2]
[311552536,1705223982914,-79337.70108505,0.00019607,2]
[311552537,1705223985972,159.87666002,0.00017645,2]
[311552538,1705223994692,-166.15876726,0.00019507,2]
[311552539,1705223994715,-219.08601926,0.00019595,2]
[311552540,1705223994737,-4791.46238905,0.00019596,2]
[311552541,1705223994763,-1379.95266542,0.00019605,2]
[311552542,1705223994785,-525.54940258,0.00019606,2]
[311552543,1705223994806,-1761.83267281,0.00019607,2]
[311552544,1705223994828,-154.98450155,0.00019608,2]
[311552545,1705223994849,-2036.09478117,0.00019608,2]
[311552546,1705223994870,-18877.03741997,0.00019608,2]
[311552547,1705223994891,-7991.86031954,0.00019609,2]
[311552548,1705223994912,-4455.45835041,0.00019609,2]
[311552549,1705223994932,-19838.74080195,0.0001961,2]
[311552550,1705223994953,-4080.86385073,0.00019611,2]
[311552551,1705223994975,-164.93109546,0.00019613,2]
[311552552,1705223994997,-3192.53,0.00019692,3]
[311552553,1705223995019,-1150.65008109,0.000197,2]
[311552554,1705223995039,-155.6407139,0.00019722,2]
[311552555,1705223995060,-155.26235345,0.00019722,2]
[311552556,1705223995083,-325.63251034,0.00019722,2]
[311552557,1705223995103,-247.00167655,0.00019722,2]
[311552558,1705223995125,-1742.54016348,0.00019722,2]
[311552559,1705223995146,-155.08511295,0.00019722,2]
[311552560,1705223995167,-155.18522897,0.00019723,2]
[311552561,1705223995188,-162.42558552,0.00019723,2]
[311552562,1705223995210,-618.55885143,0.00019723,2]
[311552563,1705223995231,-6295.46,0.00019739,3]
[311552564,1705223995253,-19200.01468516,0.00019749,2]
[311552565,1705223995721,154.98450155,0.00017645,3]
[311552566,1705224013734,154.98450155,0.00018519,3]
[311552567,1705224018936,2704.5008554,0.00019605,5]
[311552568,1705224039731,154.98450155,0.00018519,3]
[311552569,1705224055728,154.98450155,0.00018519,3]
[311552570,1705224075753,154.98450155,0.00018519,3]
[311552571,1705224091905,154.98450155,0.00018519,3]
[311552572,1705224115740,154.98450155,0.00018519,3]
[311552573,1705224139743,154.98450155,0.00018519,3]
[311552574,1705224143743,24900.0,0.00019193,2]
[311552575,1705224159861,154.98450155,0.00018519,3]
[311552577,1705224181748,154.98450155,0.00018519,3]
[311552579,1705224191663,236.100324,0.00019316,2]
[311552580,1705224205816,154.98450155,0.00018519,3]
[311552581,1705224220993,200.0,0.00021564,7]
[311552582,1705224224069,2925.88834609,0.000189,2]
[311552583,1705224229751,154.98450155,0.00018519,3]
[311552584,1705224251757,154.98450155,0.00018519,3]
[311552585,1705224267757,154.98450155,0.00018519,3]
[311552586,1705224272128,-298.26083422,0.00019506,2]
[311552587,1705224272150,-145.73916578,0.00019507,2]
[311552588,1705224285772,154.98450155,0.00018519,3]
[311552589,1705224297305,229.71167884,0.00018519,2]
[311552590,1705224309767,154.98450155,0.00018519,3]
[311552591,1705224325764,154.98450155,0.00018519,3]
[311552593,1705224341777,154.98450155,0.00018519,3]
[311552594,1705224357759,154.98450155,0.00018519,3]
[311552595,1705224379783,154.98450155,0.00018519,3]
[311552601,1705224485789,154.98450155,0.00018519,3]
[311552613,1705224523106,200.0,0.00021551,7]
[311552625,1705224602730,24900.0,0.00019072,2]
[311552626,1705224620832,1785.91754342,0.00027,19]
[311552666,1705224631741,-21.50198465,0.00019507,2]
[311552668,1705224631751,-154.98450155,0.0001959,2]
[311552670,1705224631760,-4791.46238905,0.0001959,2]
[311552671,1705224631770,-15198.98219077,0.00019591,2]
[311552672,1705224631779,-380.98528004,0.00019601,2]
[311552673,1705224631788,-506.79239507,0.00019606,2]
[311552674,1705224631798,-199.81413446,0.00019607,2]
[311552675,1705224631807,-1291.20960329,0.00019608,2]
[311552676,1705224631816,-200.66690783,0.00019608,2]
[311552677,1705224631827,-331.2180121,0.00019608,2]
[311552678,1705224631836,-156.54383332,0.0002,2]
[311552679,1705224631845,-848.19715843,0.0002,2]
[311552680,1705224631854,-170.45968232,0.0002,2]
[311552681,1705224631864,-2081.1114357,0.0002,2]
[311552682,1705224631873,-300.0,0.0002,2]
[311552683,1705224631882,-266.94660645,0.0002,2]
[311552684,1705224631892,-257.6149584,0.00020479,2]
[311552685,1705224631901,-3036.0,0.00020568,3]
[311552686,1705224631915,-2530.0,0.00020568,3]
[311552687,1705224631924,-768.44009764,0.00020576,5]
[311552688,1705224631933,-219.83179844,0.00020576,2]
[311552689,1705224631942,-452.25731104,0.00020576,2]
[311552690,1705224631952,-1251.25826469,0.00020576,2]
[311552691,1705224631961,-1240.5015561,0.00020576,2]
[311552692,1705224631970,-357.97368975,0.00020577,2]
[311552694,1705224631979,-9766.81423315,0.00020577,2]
[311552696,1705224631988,-1257.08915301,0.00020577,2]
[311552697,1705224631998,-166.163193,0.00020578,2]
[311552698,1705224632007,-3277.44715383,0.00020578,2]
[311552699,1705224632017,-1142.90076131,0.00020578,2]
[311552700,1705224632026,-32001.34903961,0.00020578,2]
[311552701,1705224632039,-3991.01697533,0.00020578,2]
[311552702,1705224632055,-1571.7347403,0.00020578,2]
[311552746,1705224641279,-1843.54474414,0.00019589,2]
[311552747,1705224641292,-2203.64566873,0.00019589,2]
[311552764,1705224821107,200.0,0.00022633,7]
[311552766,1705224825826,2027.76624748,0.000189,2]
[311552772,1705224982079,976.44607626,0.00018519,2]
[311552773,1705224993090,4013.2587436,0.00019347,2]
[311552774,1705225028715,24900.0,0.00019433,2]
[311552775,1705225073943,165.934339,0.00019433,2]
[311552784,1705225312422,1110.06471972,0.000195,2]
[311552787,1705225405127,167.879946,0.00019178,2]
[311552788,1705225421225,200.0,0.00021995,7]
[311552789,1705225422813,2354.85500561,0.000195,2]
[311552790,1705225427313,1351.84416499,0.000189,2]
[311552793,1705225440811,1569.90333707,0.000195,2]
[311552800,1705225462821,1308.25278089,0.000189,2]
[311552806,1705225478811,681.59969884,0.000189,2]
[311552807,1705225500817,681.59969884,0.000189,2]
[311552808,1705225505328,656.731033,0.0001941,2]
[311552809,1705225520815,681.59969884,0.000189,2]
[311552810,1705225540824,681.59969884,0.000189,2]
[311552811,1705225550337,24900.0,0.00019144,2]
[311552812,1705225558817,681.59969884,0.000189,2]
[311552813,1705225572828,681.59969884,0.000189,2]
[311552814,1705225576118,1284.802899,0.00019251,2]
[311552816,1705225594825,681.59969884,0.000189,2]
[311552818,1705225610827,681.59969884,0.000189,2]
[311552820,1705225626829,681.59969884,0.000189,2]
[311552821,1705225642890,681.59969884,0.000189,2]
[311552826,1705225660836,681.59969884,0.000189,2]
[311552827,1705225680832,351.91999811,0.000189,2]
[311552828,1705225685935,2872.50360392,0.00027,19]
[311552955,1705225838181,-594.28685136,0.00019553,2]
[311552957,1705225838190,-154.98450155,0.00019554,2]
[311552959,1705225838199,-260.73622957,0.00019554,2]
[311552961,1705225838208,-154.98450155,0.00019555,2]
[311552963,1705225838217,-1379.95266542,0.00019555,2]
[311552965,1705225838226,-4589.14255762,0.00019555,2]
[311553053,1705225841035,-1172.23830452,0.00019555,2]
[311553054,1705225841047,-3351.91728718,0.00019555,2]
[311553071,1705225842970,-668.66084077,0.00019555,2]
[311553072,1705225842981,-3918.4667119,0.00019555,2]
[311553073,1705225842991,-3740.30326134,0.00019556,2]
[311553074,1705225843001,-1303.6053055,0.00019573,2]
[311553075,1705225843011,-273.4164607,0.0002,2]
[311553076,1705225843020,-155.05582134,0.0002,2]
[311553077,1705225843030,-1195.92132754,0.0002,2]
[311553079,1705225843039,-677.43954104,0.0002,2]
[311553081,1705225843048,-569.88082184,0.00020566,2]
[311553083,1705225843058,-2011.14042162,0.00020569,3]
[311553087,1705225843078,-158.76957838,0.00020569,3]
[311553089,1705225843087,-935.87927968,0.00020576,2]
[311553104,1705226021346,200.0,0.00022634,7]
[311553105,1705226026960,-160.8526865,0.00019575,2]
[311553106,1705226026987,-154.9690062,0.00019576,2]
[311553107,1705226027013,-784.5425358,0.00019577,2]
[311553108,1705226027041,-4137.88,0.00020569,3]
[311553109,1705226027067,-1379.95266542,0.00020569,2]
[311553110,1705226027093,-260.73622957,0.0002057,2]
[311553111,1705226027120,-873.20781005,0.00020571,2]
[311553112,1705226027146,-181.4306017,0.00020575,2]
[311553113,1705226027172,-640.85463619,0.00020576,2]
[311553114,1705226027197,-701.04249697,0.00020577,2]
[311553115,1705226027223,-2724.5313316,0.00020577,2]
[311553116,1705226027258,-1957.46649481,0.00020577,2]
[311553117,1705226027284,-293.94213474,0.00020577,2]
[311553118,1705226027310,-271.96235488,0.00020577,2]
[311553119,1705226027337,-164.35360079,0.00020577,2]
[311553120,1705226027362,-1240.6740252,0.00020577,2]
[311553121,1705226027389,-155.26607378,0.00020577,2]
[311553122,1705226027416,-298.26083422,0.00020577,2]
[311553123,1705226027443,-154.98450155,0.00020577,2]
[311553124,1705226027468,-615.88989266,0.00020577,2]
[311553125,1705226027494,-848.66817018,0.00020577,2]
[311553126,1705226027520,-5998.53191719,0.00020577,2]
[311553127,1705226027559,-1992.26607841,0.00020577,2]
[311553128,1705226027586,-594.10076384,0.00020577,2]
[311553129,1705226027612,-154.9690062,0.00020577,2]
[311553130,1705226027638,-595.21864236,0.00020577,2]
[311553131,1705226027664,-6992.58243999,0.00020577,2]
[311553132,1705226027689,-179.23525989,0.00020577,2]
[311553133,1705226027715,-571.94518903,0.00020577,2]
[311553134,1705226027742,-919.68262028,0.00020577,2]
[311553135,1705226027784,-2827.70612748,0.00020577,2]
[311553136,1705226027810,-251.37725698,0.00020577,2]
[311553137,1705226027837,-423.95026392,0.00020577,2]
[311553138,1705226027863,-300.68226248,0.00020577,2]